fUSD/lending_fUSD_20240719
["ID","MTS","AMOUNT","RATE_DAILY","PERIOD"]
[332667346,1721413848215,-500.0,0.00034372,14]
[332667348,1721413848225,-500.0,0.00034372,14]
[332667350,1721413848235,-1059.68,0.00034372,14]
[332667352,1721413848245,-500.0,0.00034372,14]
[332667354,1721413848255,-765.56,0.00034372,14]
[332667356,1721413848266,-1273.39,0.00034372,14]
[332667358,1721413848276,-500.0,0.00034372,14]
[332667360,1721413848287,-500.0,0.00034372,14]
[332667361,1721413848296,-1507.94,0.00034372,14]
[332667362,1721413848306,-500.0,0.00034372,14]
[332667363,1721413848315,-500.0,0.00034372,14]
[332667364,1721413848325,-1127.27,0.00034372,14]
[332667365,1721413848335,-500.0,0.00034372,14]
[332667367,1721413848344,-500.0,0.00034372,14]
[332667369,1721413848354,-738.02,0.00034372,14]
[332667371,1721413848364,-500.0,0.00034372,14]
[332667373,1721413848374,-500.0,0.00034372,14]
[332667375,1721413848383,-500.0,0.00034372,14]
[332667377,1721413848392,-970.27,0.00034372,14]
[332667379,1721413848401,-940.89,0.00034372,14]
[332667381,1721413848410,-500.0,0.00034372,14]
[332667383,1721413848419,-500.0,0.00034372,14]
[332667385,1721413848429,-681.02,0.00034372,14]
[332667387,1721413848439,-1036.04,0.00034372,14]
[332667389,1721413848449,-774.41,0.00034372,14]
[332667391,1721413848459,-690.71,0.00034372,14]
[332667393,1721413848469,-500.0,0.00034372,14]
[332667395,1721413848478,-500.0,0.00034372,14]
[332667397,1721413848488,-664.89,0.00034372,14]
[332667399,1721413848497,-1456.35,0.00034372,14]
[332667401,1721413848507,-527.75,0.00034372,14]
[332667403,1721413848517,-500.0,0.00034372,14]
[332667405,1721413848526,-500.0,0.00034372,14]
[332667407,1721413848536,-500.0,0.00034372,14]
[332667409,1721413848546,-240.78906419,0.00034372,14]
[332667411,1721413848556,-500.0,0.00034372,14]
[332667413,1721413848566,-500.0,0.00034372,14]
[332667415,1721413848576,-500.0,0.00034372,14]
[332667417,1721413848586,-500.0,0.00034372,14]
[332667419,1721413848595,-500.0,0.00034372,14]
[332667421,1721413848605,-500.0,0.00034372,14]
[332667423,1721413848616,-500.0,0.00034372,14]
[332667425,1721413848625,-500.0,0.00034372,14]
[332667427,1721413848635,-975.9,0.00034372,14]
[332667429,1721413848645,-640.48,0.00034372,14]
[332667431,1721413848654,-649.09,0.00034372,14]
[332667433,1721413848665,-500.0,0.00034372,14]
[332667435,1721413848674,-500.0,0.00034372,14]
[332667437,1721413848684,-500.0,0.00034372,14]
[332667439,1721413848694,-500.0,0.00034372,14]
[332667441,1721413848705,-581.01,0.00034372,14]
[332667443,1721413848715,-608.82,0.00034372,14]
[332667445,1721413848725,-500.0,0.00034372,14]
[332667447,1721413848735,-397.14139559,0.00034372,14]
[332667450,1721413848747,-500.0,0.00034372,14]
[332667452,1721413848757,-500.0,0.00034372,14]
[332667454,1721413848768,-500.0,0.00034372,14]
[332667456,1721413848778,-500.0,0.00034372,14]
[332667458,1721413848788,-500.0,0.00034372,14]
[332667460,1721413848800,-500.0,0.00034372,14]
[332667462,1721413848810,-897.32,0.00034372,14]
[332667464,1721413848820,-500.0,0.00034372,14]
[332667466,1721413848831,-1107.25,0.00034372,14]
[332667468,1721413848840,-583.76,0.00034372,14]
[332667470,1721413848850,-615.43,0.00034372,14]
[332667472,1721413848861,-500.0,0.00034372,14]
[332667474,1721413848871,-1120.65,0.00034372,14]
[332667476,1721413848883,-500.0,0.00034372,14]
[332667478,1721413848893,-647.06,0.00034372,14]
[332667480,1721413848904,-500.0,0.00034372,14]
[332667482,1721413848915,-500.0,0.00034372,14]
[332667484,1721413848927,-500.0,0.00034372,14]
[332667486,1721413848938,-500.0,0.00034372,14]
[332667489,1721413848949,-500.0,0.00034372,14]
[332667491,1721413848963,-500.0,0.00034372,14]
[332667493,1721413848973,-687.12,0.00034372,14]
[332667494,1721413848983,-500.0,0.00034372,14]
[332667497,1721413848994,-624.86,0.00034372,14]
[332667498,1721413849004,-324.37568331,0.00034372,14]
[332667500,1721413849013,-500.0,0.00034372,14]
[332667502,1721413849023,-500.0,0.00034372,14]
[332667504,1721413849033,-703.78,0.00034372,14]
[332667506,1721413849043,-841.49,0.00034372,14]
[332667508,1721413849054,-234.52387602,0.00034372,14]
[332667510,1721413849064,-576.55,0.00034372,14]
[332667512,1721413849074,-500.0,0.00034372,14]
[332667514,1721413849083,-500.0,0.00034372,14]
[332667516,1721413849093,-647.18,0.00034372,14]
[332667518,1721413849103,-500.0,0.00034372,14]
[332667520,1721413849113,-500.0,0.00034372,14]
[332667522,1721413849124,-314.03538698,0.00034372,14]
[332667525,1721413849135,-500.0,0.00034372,14]
[332667527,1721413849146,-500.0,0.00034372,14]
[332667529,1721413849156,-507.77052418,0.00034372,14]
[332667531,1721413849167,-500.0,0.00034372,14]
[332667533,1721413849178,-710.86,0.00034372,14]
[332667535,1721413849188,-500.0,0.00034372,14]
[332667537,1721413849199,-500.0,0.00034372,14]
[332667539,1721413849213,-1048.6,0.00034372,14]
[332667541,1721413849223,-723.42,0.00034372,14]
[332667543,1721413849234,-500.0,0.00034372,14]
[332667545,1721413849244,-500.0,0.00034372,14]
[332667547,1721413849254,-500.0,0.00034372,14]
[332667549,1721413849265,-887.35,0.00034372,14]
[332667551,1721413849276,-500.0,0.00034372,14]
[332667553,1721413849288,-838.11,0.00034372,14]
[332667555,1721413849299,-500.0,0.00034372,14]
[332667558,1721413849309,-997.57,0.00034372,14]
[332667560,1721413849319,-500.0,0.00034372,14]
[332667561,1721413849330,-668.45,0.00034372,14]
[332667563,1721413849340,-500.0,0.00034372,14]
[332667566,1721413849352,-151.0,0.00034372,7]
[332667568,1721413849363,-153.281714,0.00034372,7]
[332667570,1721413849375,-160.41388,0.00034372,7]
[332667572,1721413849386,-160.41388,0.00034372,7]
[332667574,1721413849396,-153.86407,0.00034372,7]
[332667576,1721413849406,-151.0,0.00034372,7]
[332667578,1721413849417,-155.815611,0.00034372,7]
[332667580,1721413849427,-151.0,0.00034372,7]
[332667582,1721413849438,-152.407326,0.00034372,7]
[332667584,1721413849449,-245000.0,0.0003442,2]
[332667586,1721413849465,-151.0,0.0003442,7]
[332667588,1721413849476,-151.0,0.0003442,7]
[332667590,1721413849486,-230.733356,0.0003442,7]
[332667592,1721413849497,-151.0,0.0003442,7]
[332667594,1721413849507,-154.048725,0.0003442,7]
[332667596,1721413849518,-151.0,0.0003442,7]
[332667598,1721413849530,-151.86883,0.0003442,7]
[332667600,1721413849542,-260.832604,0.0003442,7]
[332667602,1721413849553,-160.41388,0.0003442,7]
[332667604,1721413849563,-160.41388,0.0003442,7]
[332667606,1721413849574,-151.0,0.0003442,7]
[332667608,1721413849585,-202.245628,0.0003442,7]
[332667610,1721413849597,-202.245628,0.0003442,7]
[332667613,1721413849609,-151.0,0.0003442,7]
[332667615,1721413849620,-151.0,0.0003442,7]
[332667617,1721413849631,-151.12755397,0.0003445,7]
[332667619,1721413849643,-15157.375233,0.000345,30]
[332667621,1721413849654,-507.0,0.000345,19]
[332667623,1721413849664,-599.3008156,0.00034516,2]
[332667625,1721413849675,-2996.5040781,0.00034516,2]
[332667627,1721413849685,-42070.5195792,0.00034516,2]
[332667629,1721413849696,-2087.5442245,0.00034516,2]
[332667631,1721413849709,-300.02,0.00034518,2]
[332667632,1721413849719,-1154.71446541,0.00034518,2]
[332667634,1721413849730,-150.0,0.00034518,2]
[332667637,1721413849741,-1666.84999999,0.00034518,2]
[332667639,1721413849752,-168.103909,0.00034519,7]
[332667641,1721413849764,-577.48,0.00034519,14]
[332667643,1721413849777,-579.7,0.00034519,14]
[332667645,1721413849787,-6358.36,0.00034519,14]
[332667647,1721413849798,-2914.47,0.00034519,14]
[332667649,1721413849809,-3918.71,0.00034519,14]
[332667651,1721413849820,-2788.61,0.00034519,14]
[332667653,1721413849831,-5947.11,0.00034519,14]
[332667655,1721413849841,-529.51,0.00034519,14]
[332667657,1721413849852,-5826.99,0.00034519,14]
[332667659,1721413849863,-1630.66,0.00034519,14]
[332667662,1721413849875,-1468.17,0.00034519,14]
[332667670,1721413849957,-569.01,0.00034519,14]
[332667672,1721413849967,-2748.03,0.00034519,14]
[332667674,1721413849978,-1049.77,0.00034519,14]
[332667676,1721413849988,-3040.57,0.00034519,14]
[332667678,1721413849999,-1367.29,0.00034519,14]
[332667680,1721413850009,-1990.97,0.00034519,14]
[332667682,1721413850019,-2419.46,0.00034519,14]
[332667684,1721413850029,-2229.04,0.00034519,14]
[332667686,1721413850039,-2424.97,0.00034519,14]
[332667688,1721413850050,-500.0,0.0003452,2]
[332667690,1721413850060,-1724.11,0.0003452,14]
[332667692,1721413850071,-2412.68,0.0003452,14]
[332667694,1721413850082,-3770.05,0.0003452,14]
[332667696,1721413850092,-3890.22,0.0003452,14]
[332667698,1721413850103,-3237.13,0.0003452,14]
[332667700,1721413850113,-3588.33,0.0003452,14]
[332667702,1721413850123,-171.06,0.0003452,14]
[332667705,1721413850133,-794.64,0.0003452,14]
[332667707,1721413850142,-522.89,0.0003452,14]
[332667709,1721413850152,-157.45737834,0.0003452,14]
[332667711,1721413850162,-5345.19,0.0003452,14]
[332667713,1721413850171,-3354.51,0.0003452,14]
[332667714,1721413850181,-500.0,0.0003452,14]
[332667716,1721413850190,-768.4,0.0003452,14]
[332667718,1721413850200,-2559.7,0.0003452,14]
[332667721,1721413850212,-624.46,0.0003452,14]
[332667722,1721413850221,-1946.59,0.0003452,14]
[332667724,1721413850231,-2668.54,0.0003452,14]
[332667726,1721413850240,-1341.92,0.0003452,14]
[332667729,1721413850250,-500.0,0.0003452,14]
[332667731,1721413850259,-545.47,0.0003452,14]
[332667732,1721413850268,-500.0,0.0003452,10]
[332667734,1721413850277,-151.892562,0.0003452,7]
[332667736,1721413850287,-500.0,0.0003452,14]
[332667738,1721413850297,-500.0,0.0003452,14]
[332667740,1721413850306,-500.0,0.0003452,14]
[332667742,1721413850317,-500.0,0.0003452,14]
[332667744,1721413850326,-500.0,0.0003452,14]
[332667746,1721413850335,-500.0,0.0003452,14]
[332667749,1721413850346,-500.0,0.0003452,14]
[332667751,1721413850356,-500.0,0.0003452,14]
[332667753,1721413850366,-500.0,0.0003452,14]
[332667754,1721413850375,-500.0,0.0003452,14]
[332667756,1721413850385,-151.094991,0.0003452,7]
[332667758,1721413850395,-584.88654791,0.0003452,14]
[332667760,1721413850405,-980.61,0.0003452,14]
[332667762,1721413850415,-151.0,0.0003452,7]
[332667764,1721413850425,-500.0,0.0003452,14]
[332667766,1721413850435,-500.0,0.0003452,14]
[332667768,1721413850444,-500.0,0.0003452,14]
[332667770,1721413850455,-508.51,0.0003452,14]
[332667772,1721413850465,-500.0,0.0003452,14]
[332667774,1721413850474,-500.0,0.0003452,14]
[332667776,1721413850484,-500.0,0.0003452,14]
[332667778,1721413850493,-505.2,0.0003452,14]
[332667780,1721413850503,-557.06,0.0003452,14]
[332667782,1721413850512,-152.096072,0.0003452,7]
[332667784,1721413850522,-500.0,0.0003452,14]
[332667786,1721413850532,-500.0,0.0003452,14]
[332667788,1721413850541,-152.72245,0.0003452,7]
[332667790,1721413850551,-500.0,0.0003452,14]
[332667792,1721413850560,-151.0,0.0003452,7]
[332667794,1721413850569,-500.0,0.0003452,14]
[332667796,1721413850579,-500.0,0.0003452,14]
[332667798,1721413850588,-500.0,0.0003452,14]
[332667800,1721413850598,-500.0,0.0003452,14]
[332667801,1721413850608,-500.0,0.0003452,14]
[332667804,1721413850617,-500.0,0.0003452,14]
[332667805,1721413850627,-500.0,0.0003452,14]
[332667808,1721413850637,-500.0,0.0003452,14]
[332667809,1721413850646,-152.406092,0.0003452,7]
[332667812,1721413850656,-151.0,0.0003452,7]
[332667814,1721413850666,-944.18,0.0003452,14]
[332667816,1721413850675,-500.0,0.0003452,14]
[332667817,1721413850685,-500.0,0.0003452,14]
[332667819,1721413850694,-157.431937,0.0003452,7]
[332667821,1721413850705,-1118.97,0.0003452,14]
[332667823,1721413850714,-500.0,0.0003452,14]
[332667825,1721413850724,-500.0,0.0003452,14]
[332667827,1721413850733,-500.0,0.0003452,14]
[332667830,1721413850743,-500.0,0.0003452,14]
[332667832,1721413850753,-1039.46,0.0003452,14]
[332667833,1721413850763,-500.0,0.0003452,14]
[332667835,1721413850772,-500.0,0.0003452,14]
[332667836,1721413850782,-523.11,0.0003452,14]
[332667837,1721413850791,-614.12,0.0003452,14]
[332667838,1721413850801,-500.0,0.0003452,14]
[332667839,1721413850810,-500.0,0.0003452,14]
[332667840,1721413850819,-576.17,0.0003452,14]
[332667841,1721413850829,-500.0,0.0003452,14]
[332667842,1721413850838,-500.0,0.0003452,14]
[332667843,1721413850848,-500.0,0.0003452,14]
[332667844,1721413850858,-2329.2,0.0003452,14]
[332667845,1721413850868,-500.0,0.0003452,14]
[332667846,1721413850879,-500.0,0.0003452,14]
[332667847,1721413850889,-500.0,0.0003452,14]
[332667848,1721413850901,-509.57,0.0003452,14]
[332667849,1721413850911,-153.404425,0.0003452,7]
[332667850,1721413850921,-500.0,0.0003452,14]
[332667851,1721413850931,-1136.18,0.0003452,14]
[332667852,1721413850940,-1135.69,0.0003452,14]
[332667853,1721413850950,-1571.8,0.0003452,14]
[332667854,1721413850964,-500.0,0.0003452,14]
[332667855,1721413850975,-500.0,0.0003452,14]
[332667856,1721413850984,-544.71,0.0003452,14]
[332667857,1721413850998,-500.0,0.0003452,14]
[332667858,1721413851006,-500.0,0.0003452,14]
[332667859,1721413851016,-500.0,0.0003452,14]
[332667860,1721413851026,-500.0,0.0003452,14]
[332667861,1721413851035,-500.0,0.0003452,14]
[332667862,1721413851044,-514.07,0.0003452,14]
[332667863,1721413851055,-151.0,0.0003452,7]
[332667864,1721413851064,-500.0,0.0003452,14]
[332667866,1721413851074,-592.25,0.0003452,14]
[332667867,1721413851083,-500.0,0.0003452,14]
[332667869,1721413851093,-500.0,0.0003452,14]
[332667871,1721413851102,-678.0,0.0003452,14]
[332667873,1721413851112,-4526.53,0.0003452,14]
[332667875,1721413851122,-151.0,0.0003452,7]
[332667877,1721413851132,-500.0,0.0003452,14]
[332667879,1721413851142,-2030.06,0.0003452,14]
[332667881,1721413851151,-500.0,0.0003452,14]
[332667883,1721413851161,-500.0,0.0003452,14]
[332667885,1721413851170,-589.85,0.0003452,14]
[332667887,1721413851179,-659.21,0.0003452,14]
[332667889,1721413851189,-500.0,0.0003452,14]
[332667891,1721413851198,-500.0,0.0003452,14]
[332667893,1721413851208,-500.0,0.0003452,14]
[332667895,1721413851217,-500.0,0.0003452,14]
[332667897,1721413851227,-500.0,0.0003452,14]
[332667899,1721413851236,-7775.78,0.0003452,14]
[332667901,1721413851246,-175.192301,0.0003452,7]
[332667903,1721413851255,-508.89,0.0003452,14]
[332667905,1721413851265,-590.84,0.0003452,14]
[332667907,1721413851275,-859.05,0.0003452,14]
[332667909,1721413851285,-500.0,0.0003452,14]
[332667911,1721413851295,-500.0,0.0003452,14]
[332667913,1721413851304,-10543.65,0.0003452,14]
[332667915,1721413851314,-1053.88,0.0003452,14]
[332667917,1721413851324,-500.0,0.0003452,14]
[332667919,1721413851333,-535.76260038,0.0003452,14]
[332667921,1721413851343,-595.6,0.0003452,14]
[332667923,1721413851352,-151.0,0.0003452,7]
[332667925,1721413851362,-500.0,0.0003452,14]
[332667926,1721413851371,-500.0,0.0003452,14]
[332667927,1721413851381,-1518.27,0.0003452,14]
[332667928,1721413851391,-511.06,0.0003452,14]
[332667929,1721413851400,-500.0,0.0003452,14]
[332667930,1721413851409,-500.0,0.0003452,14]
[332667931,1721413851421,-500.0,0.0003452,14]
[332667932,1721413851430,-500.0,0.0003452,14]
[332667933,1721413851439,-2956.01,0.0003452,14]
[332667934,1721413851448,-513.91,0.0003452,14]
[332667935,1721413851458,-1108.57,0.0003452,14]
[332667936,1721413851468,-958.57,0.0003452,14]
[332667937,1721413851477,-9024.26,0.0003452,14]
[332667938,1721413851486,-500.0,0.0003452,14]
[332667939,1721413851496,-2098.28,0.0003452,14]
[332667940,1721413851505,-1289.08,0.0003452,14]
[332667941,1721413851515,-500.0,0.0003452,14]
[332667942,1721413851524,-543.76,0.0003452,14]
[332667943,1721413851533,-500.0,0.0003452,14]
[332667944,1721413851543,-2497.42,0.0003452,14]
[332667945,1721413851552,-1341.91,0.0003452,14]
[332667946,1721413851562,-500.0,0.0003452,14]
[332667947,1721413851571,-500.0,0.0003452,14]
[332667948,1721413851580,-3379.78,0.0003452,14]
[332667949,1721413851590,-628.5,0.0003452,14]
[332667950,1721413851599,-500.0,0.0003452,14]
[332667951,1721413851609,-500.0,0.0003452,14]
[332667952,1721413851618,-151.63435471,0.0003452,14]
[332667953,1721413851628,-512.95,0.0003452,14]
[332667954,1721413851637,-500.0,0.0003452,14]
[332667955,1721413851646,-500.0,0.0003452,14]
[332667956,1721413851655,-500.0,0.0003452,14]
[332667957,1721413851665,-897.42,0.0003452,14]
[332667958,1721413851674,-500.0,0.0003452,14]
[332667959,1721413851683,-500.0,0.0003452,14]
[332667960,1721413851692,-744.04,0.0003452,14]
[332667961,1721413851702,-622.34,0.0003452,14]
[332667962,1721413851714,-500.0,0.0003452,14]
[332667963,1721413851723,-205.0069544,0.0003452,14]
[332667964,1721413851732,-500.0,0.0003452,14]
[332667965,1721413851741,-1470.32,0.0003452,14]
[332667966,1721413851750,-789.46,0.0003452,14]
[332667967,1721413851759,-500.0,0.0003452,14]
[332667968,1721413851768,-500.0,0.0003452,14]
[332667969,1721413851778,-1142.72,0.0003452,14]
[332667970,1721413851788,-500.0,0.0003452,14]
[332667971,1721413851797,-500.0,0.0003452,14]
[332667972,1721413851807,-894.51,0.0003452,14]
[332667973,1721413851816,-1301.67,0.0003452,14]
[332667974,1721413851826,-500.0,0.0003452,14]
[332667975,1721413851835,-844.39,0.0003452,14]
[332667976,1721413851845,-565.09,0.0003452,14]
[332667977,1721413851854,-500.0,0.0003452,16]
[332667978,1721413851864,-576.58,0.0003452,14]
[332667979,1721413851875,-500.0,0.0003452,14]
[332667980,1721413851887,-1896.18,0.0003452,14]
[332667981,1721413851895,-500.0,0.0003452,14]
[332667983,1721413851905,-500.0,0.0003452,14]
[332667985,1721413851914,-653.16,0.0003452,14]
[332667987,1721413851924,-500.0,0.0003452,14]
[332667989,1721413851934,-500.0,0.0003452,14]
[332667991,1721413851943,-340.30964942,0.0003452,14]
[332667993,1721413851953,-500.0,0.0003452,14]
[332667994,1721413851965,-500.0,0.0003452,14]
[332667995,1721413851974,-151.0,0.0003452,7]
[332667997,1721413851983,-500.0,0.0003452,14]
[332667999,1721413851992,-519.49287522,0.0003452,14]
[332668001,1721413852002,-500.0,0.0003452,14]
[332668002,1721413852011,-789.79,0.0003452,14]
[332668003,1721413852019,-500.0,0.0003452,14]
[332668004,1721413852028,-1173.12,0.0003452,14]
[332668005,1721413852037,-500.0,0.0003452,14]
[332668006,1721413852047,-500.0,0.0003452,14]
[332668007,1721413852056,-542.4,0.0003452,14]
[332668008,1721413852065,-500.0,0.0003452,14]
[332668009,1721413852074,-323.4532021,0.0003452,14]
[332668010,1721413852083,-818.84,0.0003452,14]
[332668011,1721413852092,-500.0,0.0003452,14]
[332668012,1721413852102,-528.86,0.0003452,14]
[332668013,1721413852111,-693.8,0.0003452,14]
[332668014,1721413852120,-500.0,0.0003452,14]
[332668015,1721413852130,-500.0,0.0003452,14]
[332668016,1721413852140,-333.78,0.0003452,14]
[332668017,1721413852149,-500.0,0.0003452,14]
[332668018,1721413852158,-616.03,0.0003452,14]
[332668019,1721413852167,-500.0,0.0003452,14]
[332668020,1721413852176,-500.0,0.0003452,14]
[332668021,1721413852185,-500.0,0.0003452,14]
[332668022,1721413852194,-500.0,0.0003452,14]
[332668023,1721413852207,-2534.91,0.0003452,14]
[332668024,1721413852216,-500.0,0.0003452,14]
[332668025,1721413852225,-512.93,0.0003452,14]
[332668026,1721413852234,-500.0,0.0003452,14]
[332668027,1721413852243,-500.0,0.0003452,14]
[332668028,1721413852253,-500.0,0.0003452,14]
[332668029,1721413852262,-3401.32,0.0003452,14]
[332668030,1721413852271,-902.83,0.0003452,14]
[332668031,1721413852281,-3549.02,0.0003452,14]
[332668032,1721413852290,-2837.37,0.0003452,14]
[332668033,1721413852300,-500.0,0.0003452,14]
[332668034,1721413852310,-500.0,0.0003452,14]
[332668035,1721413852319,-500.0,0.0003452,14]
[332668036,1721413852329,-500.0,0.0003452,14]
[332668037,1721413852338,-3100.44,0.0003452,14]
[332668038,1721413852347,-500.0,0.0003452,14]
[332668039,1721413852357,-500.0,0.0003452,14]
[332668040,1721413852366,-500.0,0.0003452,14]
[332668041,1721413852376,-500.0,0.0003452,14]
[332668042,1721413852385,-500.0,0.0003452,14]
[332668044,1721413852394,-160.41388,0.0003452,7]
[332668046,1721413852403,-1912.88,0.0003452,14]
[332668048,1721413852412,-160.41388,0.0003452,7]
[332668050,1721413852422,-1906.11,0.0003452,14]
[332668052,1721413852431,-736.29,0.0003452,14]
[332668054,1721413852440,-500.0,0.0003452,14]
[332668056,1721413852449,-5653.31,0.0003452,14]
[332668058,1721413852463,-1594.52,0.0003452,14]
[332668060,1721413852472,-1619.55,0.0003452,14]
[332668062,1721413852481,-13263.27,0.0003452,14]
[332668063,1721413852490,-500.0,0.0003452,14]
[332668065,1721413852499,-514.96,0.0003452,14]
[332668067,1721413852509,-4547.98,0.0003452,14]
[332668069,1721413852518,-500.0,0.0003452,14]
[332668071,1721413852527,-1153.64,0.0003452,14]
[332668073,1721413852537,-500.0,0.0003452,14]
[332668076,1721413852549,-2944.78,0.0003452,14]
[332668078,1721413852558,-3533.12,0.0003452,14]
[332668080,1721413852567,-500.0,0.0003452,14]
[332668081,1721413852577,-715.43,0.0003452,14]
[332668083,1721413852586,-3275.63,0.0003452,14]
[332668085,1721413852595,-500.0,0.0003452,14]
[332668087,1721413852604,-500.0,0.0003452,14]
[332668089,1721413852613,-5718.92,0.0003452,14]
[332668091,1721413852622,-793.15,0.0003452,14]
[332668093,1721413852632,-607.56,0.0003452,14]
[332668095,1721413852641,-732.08,0.0003452,14]
[332668097,1721413852651,-5679.96,0.0003452,14]
[332668099,1721413852659,-243.300452,0.0003452,7]
[332668101,1721413852669,-1510.65,0.0003452,14]
[332668103,1721413852678,-500.0,0.0003452,14]
[332668105,1721413852687,-4962.03,0.0003452,14]
[332668107,1721413852697,-1139.65,0.0003452,14]
[332668109,1721413852709,-787.54,0.0003452,14]
[332668111,1721413852718,-783.47,0.0003452,14]
[332668113,1721413852727,-500.0,0.0003452,14]
[332668115,1721413852738,-3057.15,0.0003452,14]
[332668117,1721413852747,-566.59,0.0003452,14]
[332668119,1721413852757,-5643.07,0.0003452,14]
[332668121,1721413852767,-15521.91,0.0003452,14]
[332668123,1721413852777,-650.55,0.0003452,14]
[332668125,1721413852786,-500.0,0.0003452,14]
[332668126,1721413852796,-500.0,0.0003452,14]
[332668128,1721413852805,-724.42,0.0003452,14]
[332668130,1721413852815,-624.67,0.0003452,14]
[332668132,1721413852825,-492.36992576,0.0003452,14]
[332668134,1721413852834,-5749.7,0.0003452,14]
[332668136,1721413852843,-1248.27,0.0003452,14]
[332668138,1721413852853,-500.0,0.0003452,14]
[332668140,1721413852862,-955.09,0.0003452,14]
[332668142,1721413852871,-500.0,0.0003452,14]
[332668144,1721413852880,-3272.67,0.0003452,14]
[332668146,1721413852893,-2954.88,0.0003452,14]
[332668148,1721413852902,-500.0,0.0003452,14]
[332668150,1721413852912,-3473.99,0.0003452,14]
[332668152,1721413852921,-1443.88,0.0003452,14]
[332668154,1721413852930,-518.23,0.0003452,14]
[332668156,1721413852940,-500.0,0.0003452,14]
[332668157,1721413852949,-8244.51,0.0003452,14]
[332668159,1721413852961,-1296.86,0.0003452,14]
[332668161,1721413852970,-500.0,0.0003452,14]
[332668163,1721413852979,-500.0,0.0003452,14]
[332668165,1721413852989,-1444.05,0.0003452,14]
[332668167,1721413852998,-500.0,0.0003452,14]
[332668169,1721413853007,-7351.57,0.0003452,14]
[332668171,1721413853017,-4131.01,0.0003452,14]
[332668173,1721413853026,-500.0,0.0003452,14]
[332668175,1721413853035,-500.0,0.0003452,14]
[332668177,1721413853045,-762.36,0.0003452,14]
[332668179,1721413853054,-2487.73,0.0003452,14]
[332668181,1721413853063,-507.63,0.0003452,14]
[332668183,1721413853074,-202.245628,0.0003452,7]
[332668185,1721413853084,-3282.43,0.0003452,14]
[332668187,1721413853093,-2780.86,0.0003452,14]
[332668188,1721413853102,-3560.1,0.0003452,14]
[332668190,1721413853111,-4317.58,0.0003452,14]
[332668192,1721413853120,-202.245628,0.0003452,7]
[332668194,1721413853130,-1804.15,0.0003452,14]
[332668196,1721413853139,-500.0,0.0003452,14]
[332668198,1721413853148,-2625.86,0.0003452,14]
[332668200,1721413853157,-500.0,0.0003452,14]
[332668202,1721413853168,-1713.99,0.0003452,14]
[332668204,1721413853178,-2885.3,0.0003452,14]
[332668206,1721413853187,-738.84,0.0003452,14]
[332668208,1721413853196,-6453.13,0.0003452,14]
[332668210,1721413853208,-631.97,0.0003452,14]
[332668212,1721413853217,-500.0,0.0003452,14]
[332668214,1721413853227,-500.0,0.0003452,14]
[332668216,1721413853236,-577.13,0.0003452,14]